fUST/lending_fUST_20250901
["ID","MTS","AMOUNT","RATE_DAILY","PERIOD"]
[382637321,1756689879242,-192.61443425,0.00016043,2]
[382637322,1756689879271,-500.0,0.00016043,2]
[382637323,1756689879302,-500.0,0.00016043,2]
[382637324,1756689879331,-315.69909959,0.00016043,2]
[382637325,1756689879359,-233.34999644,0.00016043,2]
[382637326,1756689879389,-500.0,0.00016043,2]
[382637327,1756689879419,-500.0,0.00016043,2]
[382637328,1756689879449,-500.0,0.00016043,2]
[382637329,1756689879478,-500.0,0.00016043,2]
[382637330,1756689879527,-3104.35169994,0.00016044,2]
[382637331,1756689879634,-3791.30660012,0.00016044,2]
[382637332,1756689879662,-1000.0,0.00016044,2]
[382637333,1756689879846,-1000.0,0.00016044,2]
[382637334,1756689879877,-151.0,0.00016044,2]
[382637335,1756689879906,-151.0,0.00016044,2]
[382637336,1756689879936,-209.40437684,0.00016044,2]
[382637337,1756689879964,-151.0,0.00016044,2]
[382637338,1756689879993,-500.0,0.00016044,2]
[382637339,1756689880022,-151.0,0.00016044,2]
[382637340,1756689880051,-500.0,0.00016044,2]
[382637341,1756689880080,-151.0,0.00016044,2]
[382637342,1756689880109,-500.0,0.00016044,2]
[382637343,1756689880139,-151.0,0.00016044,2]
[382637344,1756689880167,-500.0,0.00016044,2]
[382637345,1756689880196,-500.0,0.00016044,2]
[382637346,1756689880225,-151.0,0.00016044,2]
[382637347,1756689880348,-500.0,0.00016044,2]
[382637348,1756689880378,-151.0,0.00016044,2]
[382637349,1756689880408,-437.75304342,0.00016044,2]
[382637350,1756689880435,-151.0,0.00016044,2]
[382637351,1756689880462,-151.0,0.00016044,2]
[382637352,1756689880492,-151.0,0.00016044,2]
[382637353,1756689913203,5000.0,0.0001601,2]
[382637354,1756689913293,530.81172886,0.00015948,2]
[382637355,1756689969453,-284.201,0.00016043,2]
[382637356,1756689969481,-400.0,0.00016044,2]
[382637357,1756689969514,-480.0,0.00016044,2]
[382637358,1756689969543,-480.0,0.00016044,2]
[382637359,1756689969572,-841.92,0.00016044,2]
[382637360,1756689969603,-300.0,0.00016044,2]
[382637361,1756689969633,-1081.57,0.00016044,2]
[382637362,1756689969660,-300.0,0.00016045,2]
[382637363,1756689969688,-300.0,0.00016045,2]
[382637364,1756689969717,-300.0,0.00016045,2]
[382637365,1756689969744,-164.628,0.00016045,2]
[382637366,1756689969889,-135.372,0.00016045,2]
[382637367,1756689969920,-480.0,0.00016046,2]
[382637368,1756689969950,-480.0,0.00016047,2]
[382637369,1756689969978,-480.0,0.00016047,2]
[382637370,1756689970009,-480.0,0.00016047,2]
[382637371,1756689970038,-480.0,0.00016047,2]
[382637372,1756689970066,-480.0,0.00016047,2]
[382637374,1756689970095,-480.0,0.00016047,2]
[382637375,1756689970125,-480.0,0.00016047,2]
[382637376,1756689970154,-1009.04,0.00016047,2]
[382637377,1756689970559,-1194.2,0.00016047,2]
[382637378,1756689970588,-480.0,0.00016047,2]
[382637379,1756689970618,-693.65,0.00016047,2]
[382637380,1756689970646,-480.0,0.00016047,2]
[382637381,1756689970674,-480.0,0.00016047,2]
[382637382,1756689970704,-480.0,0.00016047,2]
[382637383,1756689970733,-480.0,0.00016047,2]
[382637384,1756689970761,-480.0,0.00016047,2]
[382637385,1756689971022,-493.31,0.00016047,2]
[382637386,1756689971050,-730.28,0.00016047,2]
[382637387,1756689971079,-480.0,0.00016047,2]
[382637388,1756689971111,-2144.91,0.00016047,2]
[382637389,1756689971139,-999.6,0.00016047,2]
[382637390,1756689971337,-951.17,0.00016047,2]
[382637391,1756689971366,-663.57,0.00016047,2]
[382637392,1756689971395,-480.0,0.00016047,2]
[382637393,1756689971425,-480.0,0.00016047,2]
[382637394,1756689971454,-480.0,0.00016047,2]
[382637395,1756689971483,-1254.57,0.00016047,2]
[382637396,1756689971512,-480.0,0.00016047,2]
[382637397,1756689971678,-480.0,0.00016047,2]
[382637398,1756689971706,-480.0,0.00016047,2]
[382637399,1756689971733,-480.0,0.00016047,2]
[382637400,1756689971761,-1943.23,0.00016047,2]
[382637401,1756689971790,-744.61,0.00016047,2]
[382637402,1756689971830,-480.0,0.00016047,2]
[382637403,1756689971863,-14.92,0.00016047,2]
[382637404,1756689972029,-754.49,0.00016047,2]
[382637405,1756689972060,-1648.4,0.00016047,2]
[382637406,1756689972089,-480.0,0.00016047,2]
[382637407,1756689972118,-537.03,0.00016047,2]
[382637408,1756689972146,-480.0,0.00016047,2]
[382637409,1756689972175,-480.0,0.00016047,2]
[382637413,1756690028832,-480.0,0.00016044,2]
[382637414,1756690028860,-480.0,0.00016044,2]
[382637415,1756690028896,-748.99917642,0.00016044,2]
[382637416,1756690028927,-967.0,0.00016044,2]
[382637417,1756690028958,-300.0,0.00016045,2]
[382637418,1756690028990,-500.0,0.00016046,2]
[382637419,1756690029022,-500.0,0.00016046,2]
[382637420,1756690029055,-206.05673566,0.00016046,2]
[382637421,1756690029085,-500.0,0.00016046,2]
[382637422,1756690029116,-135.89817584,0.00016046,2]
[382637423,1756690029590,-364.10182416,0.00016046,2]
[382637424,1756690029622,-500.0,0.00016046,2]
[382637425,1756690029654,-500.0,0.00016046,2]
[382637426,1756690029686,-500.0,0.00016046,2]
[382637427,1756690029715,-500.0,0.00016046,2]
[382637428,1756690029744,-250.06039454,0.00016046,2]
[382637429,1756690029773,-204.86626098,0.00016046,2]
[382637430,1756690029802,-379.97864584,0.00016046,2]
[382637431,1756690029832,-500.0,0.00016046,2]
[382637432,1756690029862,-500.0,0.00016046,2]
[382637433,1756690029899,-500.0,0.00016046,2]
[382637434,1756690029931,-233.52454965,0.00016046,2]
[382637435,1756690030113,-134.94664966,0.00016046,2]
[382637436,1756690030142,-480.0,0.00016047,2]
[382637437,1756690030172,-480.0,0.00016047,2]
[382637438,1756690030200,-480.0,0.00016047,2]
[382637439,1756690030231,-408.76768059,0.00016047,2]
[382637440,1756690030269,-480.0,0.00016047,2]
[382637441,1756690030299,-1248.76,0.00016047,2]
[382637442,1756690030328,-480.0,0.00016047,2]
[382637443,1756690030357,-783.1813395,0.00016047,2]
[382637444,1756690030401,-48.6986605,0.00016047,2]
[382637445,1756690030430,-480.0,0.00016047,2]
[382637446,1756690030459,-836.67,0.00016047,2]
[382637447,1756690030488,-846.81,0.00016047,2]
[382637450,1756690058886,-664.75,0.00016044,2]
[382637451,1756690058919,-480.0,0.00016044,2]
[382637452,1756690058948,-1051.53,0.00016047,2]
[382637453,1756690058976,-500.99,0.00016047,2]
[382637454,1756690059005,-656.29,0.00016047,2]
[382637455,1756690059034,-480.0,0.00016047,2]
[382637456,1756690059063,-480.0,0.00016047,2]
[382637457,1756690059497,-1816.90231941,0.00016047,2]
[382637458,1756690059551,-10000.01,0.00016047,2]
[382637459,1756690059651,-10000.01,0.00016047,2]
[382637460,1756690059715,-10000.01,0.00016047,2]
[382637461,1756690059739,-10000.01,0.00016047,2]
[382637462,1756690059810,-1816.95231941,0.00016047,2]
[382637463,1756690059837,-6366.10536118,0.00016047,2]
[382637464,1756690059926,-480.0,0.00016044,2]
[382637465,1756690059960,-480.0,0.00016048,2]
[382637466,1756690059994,-480.0,0.00016048,2]
[382637467,1756690060037,-776.28,0.00016048,2]
[382637468,1756690060072,-372.68,0.00016048,2]
[382637469,1756690060183,-4822.09,0.00016048,2]
[382637470,1756690060283,-1974.92,0.00016048,2]
[382637471,1756690060317,-480.0,0.00016048,2]
[382637472,1756690060351,-1977.06,0.00016048,2]
[382637473,1756690060397,-390.11,0.00016048,2]
[382637474,1756690060414,-355.83,0.00016048,2]
[382637475,1756690060442,-390.11,0.00016048,2]
[382637476,1756690060453,-480.0,0.00016048,2]
[382637477,1756690060465,-1046.92,0.00016048,2]
[382637478,1756690060476,-57.89,0.00016049,2]
[382637479,1756690060496,-422.11,0.00016049,2]
[382637480,1756690060507,-57.89,0.00016049,2]
[382637481,1756690060530,-732.36,0.00016049,2]
[382637482,1756690060541,-480.0,0.00016049,2]
[382637483,1756690060552,-480.0,0.00016049,2]
[382637484,1756690060562,-480.0,0.00016049,2]
[382637485,1756690060573,-480.0,0.00016049,2]
[382637486,1756690060583,-460.75,0.00016049,2]
[382637488,1756690082020,964.160922,0.00013699,2]
[382637490,1756690091657,376.91869732,0.00015954,2]
[382637493,1756690153169,627.01467536,0.00015944,2]
[382637496,1756690183687,565.77778171,0.00015947,2]
[382637498,1756690214182,183.35507261,0.0001601,2]
[382637499,1756690215686,163.33492543,0.00030779,60]
[382637527,1756690232260,-300.0,0.00016043,2]
[382637528,1756690232271,-300.0,0.00016043,2]
[382637529,1756690232280,-274.11845488,0.00016043,2]
[382637551,1756690237928,-25.88154512,0.00016043,2]
[382637553,1756690237937,-300.0,0.00016043,2]
[382637555,1756690237946,-268.94489726,0.00016043,2]
[382637565,1756690238034,-931.05510274,0.00016043,2]
[382637567,1756690238044,-222.94489726,0.00016044,2]
[382638656,1756690288780,1876.0,0.00030779,60]
[382638657,1756690296457,244.22,0.00027397,120]
[382638658,1756690309633,2001.62860565,0.00015947,2]
[382638659,1756690336866,219.013135,0.00015045,2]
[382638663,1756690382494,3167.865658,0.00030779,120]
[382638665,1756690388796,203.348944,0.0002352,30]
[382638666,1756690433940,308.68741799,0.00015948,2]
[382638667,1756690442161,155.67620431,0.00015795,2]
[382638668,1756690445630,189.0156986,0.00015795,2]
[382638669,1756690502084,155.67620431,0.0001579,2]
[382638671,1756690562263,155.6762043,0.00015795,2]
[382638673,1756690611108,4097.40938084,0.00016,2]
[382638674,1756690611133,10000.01,0.00016,2]
[382638675,1756690611155,10000.01,0.00016,2]
[382638676,1756690611179,10000.01,0.00016,2]
[382638677,1756690611202,10000.01,0.00016,2]
[382638678,1756690611223,10000.01,0.00016,2]
[382638679,1756690611248,10000.01,0.00016,2]
[382638680,1756690611268,10000.01,0.00016,2]
[382638681,1756690611289,10000.01,0.00016,2]
[382638682,1756690611309,10000.01,0.00016,2]
[382638683,1756690611332,6998.50061916,0.00016,2]
[382638684,1756690613166,1008.16,0.00027,120]
[382638686,1756690653390,380.86109681,0.00015942,2]
[382638687,1756690657416,5000.0,0.0001611,6]
[382638688,1756690665567,2089.6800488,0.0001611,6]
[382638689,1756690685216,498.52718152,0.00015942,2]
[382638690,1756690687211,9120.62172167,0.00015941,2]
[382638691,1756690687231,10000.01,0.00015941,2]
[382638692,1756690687253,10000.01,0.00015941,2]
[382638693,1756690687275,8377.44673388,0.00015941,2]
[382638694,1756690696183,5000.0,0.0001611,6]
[382638695,1756690704636,2511.69144904,0.0001611,6]
[382638697,1756690709949,1000.0,0.00025,30]
[382638698,1756690713020,1622.56326612,0.0001601,2]
[382638699,1756690713043,3377.43673388,0.0001601,2]
[382638700,1756690721125,5000.0,0.0001601,2]
[382638701,1756690736854,1622.57326612,0.0001601,2]
[382638702,1756690736877,3377.42673388,0.0001601,2]
[382638703,1756690745392,5000.0,0.0001601,2]
[382638704,1756690751336,174.14118493,0.0001594,2]
[382638705,1756690760959,1448.44208119,0.0001601,2]
[382638706,1756690760982,3551.55791881,0.0001601,2]
[382638707,1756690768921,5000.0,0.0001601,2]
[382638708,1756690774307,432.59313162,0.00015945,2]
[382638709,1756690782985,159.0,0.00016,2]
[382638710,1756690784960,856.85894957,0.0001601,2]
[382638711,1756690784984,4143.14105043,0.0001601,2]
[382638712,1756690789149,159.0,0.00016,2]
[382638713,1756690794115,260.23370561,0.0001601,2]
[382638714,1756690801769,159.0,0.00016,2]
[382638715,1756690805260,23350.58254798,0.00015943,2]
[382638716,1756690809588,928.49048354,0.0001601,2]
[382638717,1756690838277,164.0,0.00025,30]
[382638718,1756690840782,164.0,0.00025,30]
[382638719,1756690843209,239.86253671,0.00015935,2]
[382638720,1756690853928,164.0,0.00016,2]
[382638721,1756690859648,277.2421867,7.521e-05,2]
[382638725,1756690865002,165.09313352,0.00016,2]
[382638726,1756691114570,430.99469567,0.00015945,2]
[382638727,1756691169293,1000.0,0.00015039,2]
[382638728,1756691197132,-245.2499281,0.00016035,3]
[382638729,1756691208853,666.0,0.00015038,2]
[382638731,1756691348632,966.677295,0.00013699,2]
[382638783,1756691432213,-31.2600719,0.00016035,3]
[382638785,1756691432223,-555.0821706,0.00016035,3]
[382638930,1756691438140,-274.4578294,0.00016035,3]
[382638932,1756691438150,-302.39951437,0.00016035,2]
[382638934,1756691438159,-300.0,0.00016036,2]
[382638937,1756691438170,-161.73838795,0.00016036,2]
[382638940,1756691438194,-138.26161205,0.00016036,2]
[382638942,1756691438205,-300.0,0.00016036,2]
[382638944,1756691438214,-300.0,0.00016036,2]
[382638946,1756691438223,-1200.0,0.00016036,2]
[382638948,1756691438232,-500.0,0.00016037,2]
[382638950,1756691438242,-211.10918997,0.00016037,2]
[382638952,1756691438251,-462.12776844,0.00016037,2]
[382638954,1756691438261,-545.0741667,0.00016037,2]
[382638956,1756691438270,-500.0,0.00016037,2]
[382638958,1756691438279,-500.0,0.00016037,2]
[382638960,1756691438288,-260.22775572,0.00016037,2]
[382638962,1756691438298,-500.0,0.00016037,2]
[382638964,1756691438307,-500.0,0.00016037,2]
[382638966,1756691438316,-500.0,0.00016037,2]
[382638968,1756691438326,-500.0,0.00016037,2]
[382638970,1756691438335,-500.0,0.00016037,2]
[382638972,1756691438344,-500.0,0.00016037,2]
[382638974,1756691438355,-500.0,0.00016037,2]
[382638976,1756691438364,-342.38999814,0.00016037,2]
[382638978,1756691438378,-500.0,0.00016037,2]
[382638980,1756691438389,-500.0,0.00016037,2]
[382638982,1756691438399,-500.0,0.00016037,2]
[382638984,1756691438409,-500.0,0.00016037,2]
[382638986,1756691438421,-500.0,0.00016037,2]
[382638988,1756691438432,-632.68669375,0.00016037,2]
[382638990,1756691438443,-500.0,0.00016037,2]
[382638992,1756691438453,-500.0,0.00016037,2]
[382638994,1756691438464,-500.0,0.00016037,2]
[382638996,1756691438475,-177.26655261,0.00016037,2]
[382638998,1756691438486,-500.0,0.00016037,2]
[382639000,1756691438496,-500.0,0.00016037,2]
[382639003,1756691438506,-500.0,0.00016037,2]
[382639005,1756691438517,-589.9294345,0.00016037,2]
[382639007,1756691438527,-500.0,0.00016037,2]
[382639008,1756691438538,-500.0,0.00016037,2]
[382639010,1756691438548,-500.0,0.00016037,2]
[382639012,1756691438558,-500.0,0.00016037,2]
[382639014,1756691438567,-500.0,0.00016037,2]
[382639016,1756691438577,-592.7354838,0.00016037,2]
[382639018,1756691438587,-500.0,0.00016037,2]
[382639020,1756691438597,-1200.0,0.00016037,2]
[382639023,1756691438607,-480.0,0.00016037,2]
[382639025,1756691438617,-480.0,0.00016037,2]
[382639045,1756691438825,-480.0,0.00016037,2]
[382639047,1756691438835,-999.42,0.00016037,2]
[382639049,1756691438845,-1279.45,0.00016037,2]
[382639051,1756691438856,-484.49,0.00016037,2]
[382639053,1756691438866,-480.0,0.00016037,2]
[382639055,1756691438876,-482.76940663,0.00016037,2]
[382639057,1756691438886,-50000.0,0.00016038,2]
[382639059,1756691438896,-735.32,0.00016038,2]
[382639061,1756691438906,-480.0,0.00016038,2]
[382639063,1756691438916,-480.0,0.00016038,2]
[382639065,1756691438925,-533.27541289,0.00016038,2]
[382639067,1756691438934,-480.0,0.00016038,2]
[382639069,1756691438944,-480.0,0.00016038,2]
[382639071,1756691438954,-480.0,0.00016038,2]
[382639074,1756691438963,-482.44762185,0.00016038,2]
[382639076,1756691438973,-482.83445905,0.00016038,2]
[382639078,1756691438983,-480.0,0.00016038,2]
[382639080,1756691438993,-518.12,0.00016038,2]
[382639082,1756691439003,-483.3550606,0.00016038,2]
[382639084,1756691439012,-519.92539704,0.00016038,2]
[382639086,1756691439022,-480.0,0.00016038,2]
[382639088,1756691439031,-481.66480232,0.00016038,2]
[382639090,1756691439040,-481.92811076,0.00016038,2]
[382639092,1756691439051,-480.0,0.00016038,2]
[382639094,1756691439060,-483.61291283,0.00016038,2]
[382639096,1756691439070,-482.92940266,0.00016038,2]
[382639098,1756691439079,-481.82486354,0.00016038,2]
[382639100,1756691439089,-480.0,0.00016038,2]
[382639102,1756691439098,-480.0,0.00016038,2]
[382639104,1756691439110,-482.23772739,0.00016038,2]
[382639106,1756691439119,-480.0,0.00016038,2]
[382639108,1756691439129,-480.0,0.00016038,2]
[382639110,1756691439138,-1163.0,0.00016038,2]
[382639112,1756691439147,-480.0,0.00016038,2]
[382639114,1756691439157,-480.0,0.00016038,2]
[382639116,1756691439166,-507.74,0.00016038,2]
[382639118,1756691439176,-584.89,0.00016038,2]
[382639120,1756691439185,-480.0,0.00016038,2]
[382639122,1756691439194,-635.61,0.00016038,2]
[382639124,1756691439204,-480.0,0.00016038,2]
[382639126,1756691439213,-480.0,0.00016038,2]
[382639128,1756691439222,-481.4460075,0.00016038,2]
[382639130,1756691439232,-482.22866156,0.00016038,2]
[382639132,1756691439241,-481.49182011,0.00016038,2]
[382639134,1756691439251,-481.83224873,0.00016038,2]
[382639136,1756691439260,-481.86328089,0.00016038,2]
[382639138,1756691439269,-482.5624001,0.00016038,2]
[382639140,1756691439278,-480.0,0.00016038,2]
[382639142,1756691439288,-481.89667699,0.00016038,2]
[382639144,1756691439297,-480.0,0.00016038,2]
[382639146,1756691439307,-483.36841621,0.00016038,2]
[382639148,1756691439316,-480.0,0.00016039,2]
[382639150,1756691439326,-250.29901568,0.00016039,2]
[382639152,1756691439336,-1121.14,0.00016039,2]
[382639154,1756691439345,-745.01,0.00016039,2]
[382639156,1756691439359,-480.0,0.00016039,2]
[382639158,1756691439369,-480.0,0.00016039,2]
[382639160,1756691439379,-485.1066742,0.00016039,2]
[382639162,1756691439392,-533.36,0.00016039,2]
[382639164,1756691439401,-480.0,0.00016039,2]
[382639166,1756691439410,-2411.28,0.00016039,2]
[382639168,1756691439419,-621.93,0.00016039,2]
[382639170,1756691439430,-488.71,0.00016039,2]
[382639172,1756691439439,-480.0,0.00016039,2]
[382639174,1756691439449,-523.99,0.00016039,2]
[382639176,1756691439458,-1400.05,0.00016039,2]
[382639178,1756691439467,-480.0,0.00016039,2]
[382639180,1756691439477,-480.0,0.00016039,2]
[382639182,1756691439486,-481.7402674,0.00016039,2]
[382639184,1756691439496,-480.0,0.00016039,2]
[382639186,1756691439506,-742.29,0.00016039,2]
[382639188,1756691439515,-2165.64,0.00016039,2]
[382639190,1756691439524,-480.0,0.00016039,2]
[382639192,1756691439533,-480.0,0.00016039,2]
[382639194,1756691439543,-759.97,0.00016039,2]
[382639196,1756691439552,-480.0,0.00016039,2]
[382639198,1756691439562,-571.98,0.00016039,2]
[382639200,1756691439571,-1841.26,0.00016039,2]
[382639202,1756691439582,-480.0,0.00016039,2]
[382639204,1756691439591,-480.0,0.00016039,2]
[382639206,1756691439604,-1163.0,0.0001604,2]
[382639208,1756691439614,-480.0,0.00016041,2]
[382639210,1756691439623,-480.0,0.00016041,2]
[382639212,1756691439633,-490.5,0.00016041,2]
[382639214,1756691439644,-480.0,0.00016041,2]
[382639216,1756691439653,-1269.26,0.00016041,2]
[382639218,1756691439662,-482.29031828,0.00016041,2]
[382639220,1756691439672,-481.61529543,0.00016041,2]
[382639222,1756691439682,-480.0,0.00016041,2]
[382639224,1756691439693,-1005.3,0.00016041,2]
[382639226,1756691439702,-1009.43,0.00016041,2]
[382639229,1756691439713,-703.41,0.00016041,2]
[382639231,1756691439722,-480.0,0.00016041,2]
[382639233,1756691439731,-480.0,0.00016041,2]
[382639235,1756691439740,-480.0,0.00016041,2]
[382639237,1756691439751,-480.0,0.00016041,2]
[382639238,1756691439760,-485.25010653,0.00016041,2]
[382639241,1756691439770,-480.0,0.00016041,2]
[382639243,1756691439782,-538.55,0.00016041,2]
[382639245,1756691439791,-880.73,0.00016041,2]
[382639247,1756691439801,-686.11,0.00016041,2]
[382639249,1756691439810,-663.16,0.00016041,2]
[382639251,1756691439820,-480.0,0.00016041,2]
[382639253,1756691439829,-480.0,0.00016041,2]
[382639255,1756691439839,-854.49,0.00016041,2]
[382639257,1756691439849,-533.02,0.00016041,2]
[382639259,1756691439863,-841.48,0.00016041,2]
[382639261,1756691439872,-1172.62,0.00016041,2]
[382639263,1756691439882,-480.0,0.00016041,2]
[382639265,1756691439892,-480.0,0.00016041,2]
[382639267,1756691439902,-480.0,0.00016041,2]
[382639269,1756691439912,-703.02,0.00016041,2]
[382639271,1756691439921,-599.49,0.00016041,2]
[382639273,1756691439931,-863.35,0.00016041,2]
[382639275,1756691439940,-480.0,0.00016041,2]
[382639277,1756691439950,-480.0,0.00016041,2]
[382639279,1756691439959,-480.0,0.00016041,2]
[382639281,1756691439968,-787.39,0.00016041,2]
[382639283,1756691439978,-1017.55,0.00016041,2]
[382639285,1756691439987,-480.0,0.00016041,2]
[382639287,1756691439997,-776.17,0.00016041,2]
[382639289,1756691440007,-851.31,0.00016041,2]
[382639291,1756691440017,-480.0,0.00016041,2]
[382639293,1756691440027,-480.0,0.00016041,2]
[382639295,1756691440037,-480.0,0.00016041,2]
[382639297,1756691440047,-769.18,0.00016041,2]
[382639299,1756691440057,-939.49,0.00016041,2]
[382639301,1756691440067,-480.0,0.00016041,2]
[382639303,1756691440077,-480.0,0.00016041,2]
[382639305,1756691440087,-485.74,0.00016041,2]
[382639307,1756691440097,-480.0,0.00016041,2]
[382639309,1756691440110,-480.0,0.00016041,2]
[382639311,1756691440120,-480.0,0.00016041,2]
[382639313,1756691440129,-959.34,0.00016041,2]
[382639315,1756691440139,-480.0,0.00016041,2]
[382639317,1756691440148,-1153.72,0.00016041,2]
[382639320,1756691440158,-3816.45,0.00016042,2]
[382639322,1756691440168,-1163.0,0.00016042,2]
[382639323,1756691440178,-1746.81,0.00016042,2]
[382639326,1756691440189,-480.0,0.00016042,2]
[382639328,1756691440198,-910.89,0.00016042,2]
[382639330,1756691440208,-5528.96,0.00016042,2]
[382639332,1756691440218,-2200.31,0.00016042,2]
[382639334,1756691440227,-480.0,0.00016042,2]
[382639336,1756691440237,-480.0,0.00016043,2]
[382639338,1756691440248,-482.4630958,0.00016043,2]
[382639340,1756691440258,-482.39644616,0.00016043,2]
[382639342,1756691440267,-652.75,0.00016043,2]
[382639344,1756691440276,-1163.0,0.00016043,2]
[382639346,1756691440286,-1163.0,0.00016043,2]
[382639348,1756691440296,-6166.05,0.00016043,2]
[382639350,1756691440305,-1356.21,0.00016043,2]
[382639352,1756691440315,-5985.03,0.00016043,2]
[382639354,1756691440325,-600.03,0.00016043,2]
[382639356,1756691440335,-1366.82,0.00016043,2]
[382639358,1756691440344,-481.41112014,0.00016044,2]
[382639360,1756691440356,-549.13,0.00016044,2]
[382639362,1756691440365,-480.0,0.00016044,2]
[382639364,1756691440375,-635.01,0.00016044,2]
[382639366,1756691440388,-493.74,0.00016044,2]
[382639368,1756691440397,-1315.58,0.00016044,2]
[382639370,1756691440406,-481.68882701,0.00016044,2]
[382639372,1756691440415,-480.0,0.00016044,2]
[382639374,1756691440426,-480.0,0.00016044,2]
[382639376,1756691440435,-480.0,0.00016044,2]
[382639378,1756691440445,-1061.69,0.00016044,2]
[382639380,1756691440455,-481.4140215,0.00016044,2]
[382639382,1756691440465,-480.0,0.00016044,2]
[382639384,1756691440475,-1166.29,0.00016044,2]
[382639387,1756691440485,-480.0,0.00016044,2]
[382639389,1756691440494,-483.99389889,0.00016044,2]
[382639391,1756691440504,-481.90217232,0.00016044,2]
[382639393,1756691440513,-480.0,0.00016044,2]
[382639395,1756691440522,-1450.56,0.00016044,2]
[382639397,1756691440532,-3302.67,0.00016044,2]
[382639399,1756691440544,-2280.44,0.00016044,2]
[382639401,1756691440554,-873.48,0.00016044,2]
[382639403,1756691440563,-480.0,0.00016044,2]
[382639405,1756691440572,-721.48,0.00016044,2]
[382639407,1756691440581,-1114.48,0.00016044,2]
[382639409,1756691440591,-1163.0,0.00016044,2]
[382639411,1756691440601,-1309.19,0.00016044,2]
[382639413,1756691440611,-1163.0,0.00016044,2]
[382639415,1756691440620,-1163.0,0.00016044,2]
[382639417,1756691440630,-1163.0,0.00016044,2]
[382639419,1756691440639,-652.81,0.00016044,2]
[382639422,1756691440649,-480.0,0.00016044,2]
[382639424,1756691440659,-482.07804146,0.00016045,2]
[382639426,1756691440668,-482.50249182,0.00016045,2]
[382639428,1756691440678,-480.0,0.00016045,2]
[382639430,1756691440687,-480.0,0.00016045,2]
[382639432,1756691440696,-790.99,0.00016045,2]
[382639434,1756691440707,-480.0,0.00016045,2]
[382639436,1756691440716,-480.0,0.00016045,2]
[382639438,1756691440725,-480.0,0.00016045,2]
[382639440,1756691440735,-480.0,0.00016045,2]
[382639442,1756691440744,-480.0,0.00016045,2]
[382639444,1756691440754,-480.0,0.00016045,2]
[382639446,1756691440763,-480.0,0.00016045,2]
[382639448,1756691440772,-480.0,0.00016045,2]
[382639450,1756691440781,-480.0,0.00016045,2]
[382639452,1756691440791,-482.36056505,0.00016045,2]
[382639454,1756691440801,-480.0,0.00016045,2]
[382639456,1756691440810,-480.0,0.00016045,2]
[382639458,1756691440819,-480.0,0.00016045,2]
[382639460,1756691440829,-971.05,0.00016045,2]
[382639462,1756691440839,-482.7155595,0.00016045,2]
[382639464,1756691440849,-480.0,0.00016045,2]
[382639466,1756691440863,-482.22074643,0.00016045,2]
[382639468,1756691440873,-483.89643777,0.00016045,2]
[382639470,1756691440882,-480.0,0.00016045,2]
[382639473,1756691440893,-480.0,0.00016045,2]
[382639474,1756691440904,-480.0,0.00016045,2]